{"text_format":"3","workbook":"xlsx","n_sheets":2,"sheets":["Oversikt over utstyr","Innstillinger"],"not_rendered":{"defined_names":4},"read":"whole","date_system":"1900"}

{"sheet":"Oversikt over utstyr","index":0,"n_rows":35,"n_cols":6,"rows_kept":35,"merged":[[0,1,2,2],[0,4,0,5]]}
[]
[{"$nulls":4},"Fremhev artikler som er eldre enn:"]
[{"$nulls":4},4]
[]
[null,"UTSTYRS-ID","NAVN PÅ GJENSTAND","TILORDNET TIL","UTSENDENDELSESDATO","ALDER PÅ GJENSTAND"]
[null,"GJENSTAND0001","stol","Ansatt 1",{"$f":"TODAY()-25","v":"2012-10-28"},{"$f":"IF(tblUtstyrsoversikt[[#This Row],[UTSENDENDELSESDATO]]<>\"\",TODAY()-tblUtstyrsoversikt[[#This Row],[UTSENDENDELSESDATO]],\"\")","v":{"v":25,"d":"25 dager"}}]
[null,"GJENSTAND0002","laserskriver","Ansatt 2",{"$f":"TODAY()-479","v":"2011-08-01"},{"$f":"IF(tblUtstyrsoversikt[[#This Row],[UTSENDENDELSESDATO]]<>\"\",TODAY()-tblUtstyrsoversikt[[#This Row],[UTSENDENDELSESDATO]],\"\")","v":{"v":479,"d":"479 dager"}}]
[null,"GJENSTAND0003","skanner","Ansatt 3",{"$f":"TODAY()-177","v":"2012-05-29"},{"$f":"IF(tblUtstyrsoversikt[[#This Row],[UTSENDENDELSESDATO]]<>\"\",TODAY()-tblUtstyrsoversikt[[#This Row],[UTSENDENDELSESDATO]],\"\")","v":{"v":177,"d":"177 dager"}}]
[null,"GJENSTAND0004","laserskriver","Ansatt 7",{"$f":"TODAY()-18","v":"2012-11-04"},{"$f":"IF(tblUtstyrsoversikt[[#This Row],[UTSENDENDELSESDATO]]<>\"\",TODAY()-tblUtstyrsoversikt[[#This Row],[UTSENDENDELSESDATO]],\"\")","v":{"v":18,"d":"18 dager"}}]
[null,"GJENSTAND0005","kaffemaskin","Ansatt 20",{"$f":"TODAY()-227","v":"2012-04-09"},{"$f":"IF(tblUtstyrsoversikt[[#This Row],[UTSENDENDELSESDATO]]<>\"\",TODAY()-tblUtstyrsoversikt[[#This Row],[UTSENDENDELSESDATO]],\"\")","v":{"v":227,"d":"227 dager"}}]
[null,"GJENSTAND0006","skanner","Ansatt 14",{"$f":"TODAY()-50","v":"2012-10-03"},{"$f":"IF(tblUtstyrsoversikt[[#This Row],[UTSENDENDELSESDATO]]<>\"\",TODAY()-tblUtstyrsoversikt[[#This Row],[UTSENDENDELSESDATO]],\"\")","v":{"v":50,"d":"50 dager"}}]
[null,"GJENSTAND0007","bord","Ansatt 4",{"$f":"TODAY()-120","v":"2012-07-25"},{"$f":"IF(tblUtstyrsoversikt[[#This Row],[UTSENDENDELSESDATO]]<>\"\",TODAY()-tblUtstyrsoversikt[[#This Row],[UTSENDENDELSESDATO]],\"\")","v":{"v":120,"d":"120 dager"}}]
[null,"GJENSTAND0008","kopieringsmaskin","Ansatt 12",{"$f":"TODAY()-499","v":"2011-07-12"},{"$f":"IF(tblUtstyrsoversikt[[#This Row],[UTSENDENDELSESDATO]]<>\"\",TODAY()-tblUtstyrsoversikt[[#This Row],[UTSENDENDELSESDATO]],\"\")","v":{"v":499,"d":"499 dager"}}]
[null,"GJENSTAND0009","ekstra skjerm","Ansatt 8",{"$f":"TODAY()-30","v":"2012-10-23"},{"$f":"IF(tblUtstyrsoversikt[[#This Row],[UTSENDENDELSESDATO]]<>\"\",TODAY()-tblUtstyrsoversikt[[#This Row],[UTSENDENDELSESDATO]],\"\")","v":{"v":30,"d":"30 dager"}}]
[null,"GJENSTAND0010","tavle","Ansatt 19",{"$f":"TODAY()-50","v":"2012-10-03"},{"$f":"IF(tblUtstyrsoversikt[[#This Row],[UTSENDENDELSESDATO]]<>\"\",TODAY()-tblUtstyrsoversikt[[#This Row],[UTSENDENDELSESDATO]],\"\")","v":{"v":50,"d":"50 dager"}}]
[null,"GJENSTAND0011","kopieringsmaskin","Ansatt 12",{"$f":"TODAY()-450","v":"2011-08-30"},{"$f":"IF(tblUtstyrsoversikt[[#This Row],[UTSENDENDELSESDATO]]<>\"\",TODAY()-tblUtstyrsoversikt[[#This Row],[UTSENDENDELSESDATO]],\"\")","v":{"v":450,"d":"450 dager"}}]
[null,"GJENSTAND0012","brevark","Ansatt 18",{"$f":"TODAY()-420","v":"2011-09-29"},{"$f":"IF(tblUtstyrsoversikt[[#This Row],[UTSENDENDELSESDATO]]<>\"\",TODAY()-tblUtstyrsoversikt[[#This Row],[UTSENDENDELSESDATO]],\"\")","v":{"v":420,"d":"420 dager"}}]
[null,"GJENSTAND0013","ekstra skjerm","Ansatt 8",{"$f":"TODAY()-250","v":"2012-03-17"},{"$f":"IF(tblUtstyrsoversikt[[#This Row],[UTSENDENDELSESDATO]]<>\"\",TODAY()-tblUtstyrsoversikt[[#This Row],[UTSENDENDELSESDATO]],\"\")","v":{"v":250,"d":"250 dager"}}]
[null,"GJENSTAND0014","kaffemaskin","Ansatt 9",{"$f":"TODAY()-45","v":"2012-10-08"},{"$f":"IF(tblUtstyrsoversikt[[#This Row],[UTSENDENDELSESDATO]]<>\"\",TODAY()-tblUtstyrsoversikt[[#This Row],[UTSENDENDELSESDATO]],\"\")","v":{"v":45,"d":"45 dager"}}]
[null,"GJENSTAND0015","brevark","Ansatt 13",{"$f":"TODAY()-502","v":"2011-07-09"},{"$f":"IF(tblUtstyrsoversikt[[#This Row],[UTSENDENDELSESDATO]]<>\"\",TODAY()-tblUtstyrsoversikt[[#This Row],[UTSENDENDELSESDATO]],\"\")","v":{"v":502,"d":"502 dager"}}]
[null,"GJENSTAND0016","skanner","Ansatt 1",{"$f":"TODAY()-350","v":"2011-12-08"},{"$f":"IF(tblUtstyrsoversikt[[#This Row],[UTSENDENDELSESDATO]]<>\"\",TODAY()-tblUtstyrsoversikt[[#This Row],[UTSENDENDELSESDATO]],\"\")","v":{"v":350,"d":"350 dager"}}]
[null,"GJENSTAND0017","kopieringsmaskin","Ansatt 19",{"$f":"TODAY()-125","v":"2012-07-20"},{"$f":"IF(tblUtstyrsoversikt[[#This Row],[UTSENDENDELSESDATO]]<>\"\",TODAY()-tblUtstyrsoversikt[[#This Row],[UTSENDENDELSESDATO]],\"\")","v":{"v":125,"d":"125 dager"}}]
[null,"GJENSTAND0018","tavle","Ansatt 15",{"$f":"TODAY()-90","v":"2012-08-24"},{"$f":"IF(tblUtstyrsoversikt[[#This Row],[UTSENDENDELSESDATO]]<>\"\",TODAY()-tblUtstyrsoversikt[[#This Row],[UTSENDENDELSESDATO]],\"\")","v":{"v":90,"d":"90 dager"}}]
[null,"GJENSTAND0019","stol","Ansatt 16",{"$f":"TODAY()-730","v":"2010-11-23"},{"$f":"IF(tblUtstyrsoversikt[[#This Row],[UTSENDENDELSESDATO]]<>\"\",TODAY()-tblUtstyrsoversikt[[#This Row],[UTSENDENDELSESDATO]],\"\")","v":{"v":730,"d":"730 dager"}}]
[null,"GJENSTAND0020","støvklut (1 sett)","Ansatt 3",{"$f":"TODAY()-540","v":"2011-06-01"},{"$f":"IF(tblUtstyrsoversikt[[#This Row],[UTSENDENDELSESDATO]]<>\"\",TODAY()-tblUtstyrsoversikt[[#This Row],[UTSENDENDELSESDATO]],\"\")","v":{"v":540,"d":"540 dager"}}]
[null,"GJENSTAND0021","laserskriver","Ansatt 7",{"$f":"TODAY()-18","v":"2012-11-04"},{"$f":"IF(tblUtstyrsoversikt[[#This Row],[UTSENDENDELSESDATO]]<>\"\",TODAY()-tblUtstyrsoversikt[[#This Row],[UTSENDENDELSESDATO]],\"\")","v":{"v":18,"d":"18 dager"}}]
[null,"GJENSTAND0022","bærbar datamaskin","Ansatt 8",{"$f":"TODAY()-283","v":"2012-02-13"},{"$f":"IF(tblUtstyrsoversikt[[#This Row],[UTSENDENDELSESDATO]]<>\"\",TODAY()-tblUtstyrsoversikt[[#This Row],[UTSENDENDELSESDATO]],\"\")","v":{"v":283,"d":"283 dager"}}]
[null,"GJENSTAND0023","brevark","Ansatt 9",{"$f":"TODAY()-479","v":"2011-08-01"},{"$f":"IF(tblUtstyrsoversikt[[#This Row],[UTSENDENDELSESDATO]]<>\"\",TODAY()-tblUtstyrsoversikt[[#This Row],[UTSENDENDELSESDATO]],\"\")","v":{"v":479,"d":"479 dager"}}]
[null,"GJENSTAND0024","laserskriver","Ansatt 19",{"$f":"TODAY()-355","v":"2011-12-03"},{"$f":"IF(tblUtstyrsoversikt[[#This Row],[UTSENDENDELSESDATO]]<>\"\",TODAY()-tblUtstyrsoversikt[[#This Row],[UTSENDENDELSESDATO]],\"\")","v":{"v":355,"d":"355 dager"}}]
[null,"GJENSTAND0025","bord","Ansatt 7",{"$f":"TODAY()-28","v":"2012-10-25"},{"$f":"IF(tblUtstyrsoversikt[[#This Row],[UTSENDENDELSESDATO]]<>\"\",TODAY()-tblUtstyrsoversikt[[#This Row],[UTSENDENDELSESDATO]],\"\")","v":{"v":28,"d":"28 dager"}}]
[null,"GJENSTAND0026","tavle","Ansatt 8",{"$f":"TODAY()-28","v":"2012-10-25"},{"$f":"IF(tblUtstyrsoversikt[[#This Row],[UTSENDENDELSESDATO]]<>\"\",TODAY()-tblUtstyrsoversikt[[#This Row],[UTSENDENDELSESDATO]],\"\")","v":{"v":28,"d":"28 dager"}}]
[null,"GJENSTAND0027","bærbar datamaskin","Ansatt 19",{"$f":"TODAY()-736","v":"2010-11-17"},{"$f":"IF(tblUtstyrsoversikt[[#This Row],[UTSENDENDELSESDATO]]<>\"\",TODAY()-tblUtstyrsoversikt[[#This Row],[UTSENDENDELSESDATO]],\"\")","v":{"v":736,"d":"736 dager"}}]
[null,"GJENSTAND0028","bord","Ansatt 12",{"$f":"TODAY()-68","v":"2012-09-15"},{"$f":"IF(tblUtstyrsoversikt[[#This Row],[UTSENDENDELSESDATO]]<>\"\",TODAY()-tblUtstyrsoversikt[[#This Row],[UTSENDENDELSESDATO]],\"\")","v":{"v":68,"d":"68 dager"}}]
[null,"GJENSTAND0029","skanner","Ansatt 14",{"$f":"TODAY()-67","v":"2012-09-16"},{"$f":"IF(tblUtstyrsoversikt[[#This Row],[UTSENDENDELSESDATO]]<>\"\",TODAY()-tblUtstyrsoversikt[[#This Row],[UTSENDENDELSESDATO]],\"\")","v":{"v":67,"d":"67 dager"}}]
[null,"GJENSTAND0030","kaffemaskin","Ansatt 3",{"$f":"TODAY()-149","v":"2012-06-26"},{"$f":"IF(tblUtstyrsoversikt[[#This Row],[UTSENDENDELSESDATO]]<>\"\",TODAY()-tblUtstyrsoversikt[[#This Row],[UTSENDENDELSESDATO]],\"\")","v":{"v":149,"d":"149 dager"}}]

{"sheet":"Innstillinger","index":1,"n_rows":23,"n_cols":4,"rows_kept":23}
[]
[]
[null,"ANSATTE",null,"GJENSTANDER"]
[null,"Ansatt 1",null,"stol"]
[null,"Ansatt 2",null,"kaffemaskin"]
[null,"Ansatt 3",null,"kopieringsmaskin"]
[null,"Ansatt 4",null,"stasjonær datamaskin"]
[null,"Ansatt 5",null,"støvklut (1 sett)"]
[null,"Ansatt 6",null,"ekstra skjerm"]
[null,"Ansatt 7",null,"blekkskriver"]
[null,"Ansatt 8",null,"bærbar datamaskin"]
[null,"Ansatt 9",null,"laserskriver"]
[null,"Ansatt 10",null,"merkepenner (3-pakning)"]
[null,"Ansatt 11",null,"skanner"]
[null,"Ansatt 12",null,"brevark"]
[null,"Ansatt 13",null,"bord"]
[null,"Ansatt 14",null,"USB-stasjon"]
[null,"Ansatt 15",null,"tavle"]
[null,"Ansatt 16"]
[null,"Ansatt 17"]
[null,"Ansatt 18"]
[null,"Ansatt 19"]
[null,"Ansatt 20"]